[Event "Titled Tuesday Blitz May 10 Late 2022"]
[White "Hess, Robert"]
[Black "Zhou, Qiyu"]
[WhiteFideId "2022036"]
[BlackFideId "505161"]
[WhiteElo "2557"]
[BlackElo "1925"]
[Result "1-0"]
[Round "10"]
[TimeControl "180+1"]
[Date "2022.05.10"]
[WhiteClock "0:01:16"]
[BlackClock "0:01:51"]

1. b3 {[%clk 0:02:43]}  d6 {[%clk 0:02:54]} 2. Bb2 {[%clk 0:02:44]}  e5 {[%clk 0:02:54]} 3. d3 {[%clk 0:02:44]}  g6 {[%clk 0:02:54]} 4. Nd2 {[%clk 0:02:45]}  Bg7 {[%clk 0:02:55]} 5. e3 {[%clk 0:02:46]}  Ne7 {[%clk 0:02:55]} 6. Ne2 {[%clk 0:02:46]}  O-O {[%clk 0:02:56]} 7. g3 {[%clk 0:02:46]}  c6 {[%clk 0:02:56]} 8. Bg2 {[%clk 0:02:47]}  Be6 {[%clk 0:02:56]} 9. a3 {[%clk 0:02:45]}  Nd7 {[%clk 0:02:56]} 10. c4 {[%clk 0:02:45]}  f5 {[%clk 0:02:55]} 11. Qc2 {[%clk 0:02:45]}  Rc8 {[%clk 0:02:55]} 12. h4 {[%clk 0:02:44]}  Nf6 {[%clk 0:02:54]} 13. d4 {[%clk 0:02:42]}  e4 {[%clk 0:02:50]} 14. Nf4 {[%clk 0:02:41]}  Bf7 {[%clk 0:02:51]} 15. b4 {[%clk 0:02:40]}  d5 {[%clk 0:02:48]} 16. Bf1 {[%clk 0:02:32]}  Qd7 {[%clk 0:02:35]} 17. Be2 {[%clk 0:02:25]}  h5 {[%clk 0:02:30]} 18. Nb3 {[%clk 0:02:17]}  b6 {[%clk 0:02:29]} 19. c5 {[%clk 0:02:06]}  Rc7 {[%clk 0:02:20]} 20. a4 {[%clk 0:02:05]}  Rb8 {[%clk 0:02:19]} 21. cxb6 {[%clk 0:02:03]}  axb6 {[%clk 0:02:20]} 22. a5 {[%clk 0:01:53]}  bxa5 {[%clk 0:02:15]} 23. Nc5 {[%clk 0:01:52]}  Qc8 {[%clk 0:02:09]} 24. bxa5 {[%clk 0:01:51]}  Ra7 {[%clk 0:02:07]} 25. O-O {[%clk 0:01:34]}  Nd7 {[%clk 0:02:02]} 26. Rfb1 {[%clk 0:01:17]}  Nxc5 {[%clk 0:01:55]} 27. Qxc5 {[%clk 0:01:17]}  Bf8 {[%clk 0:01:51]} 28. Qxa7 {[%clk 0:01:16]} 1-0


[Site "https://www.chess.com"]

[Event "Titled Tuesday Blitz May 10 Late 2022"]
[White "Ibarra Jerez, Jose Carlos"]
[Black "Martinez Alcantara, Jose Eduardo"]
[WhiteFideId "2226332"]
[BlackFideId "3805662"]
[WhiteElo "2626"]
[BlackElo "2690"]
[Result "0-1"]
[Round "10"]
[TimeControl "180+1"]
[Date "2022.05.10"]
[WhiteClock "0:00:02"]
[BlackClock "0:00:59"]

1. e4 {[%clk 0:02:57]}  c5 {[%clk 0:03:00]} 2. Nc3 {[%clk 0:02:56]}  Nc6 {[%clk 0:02:58]} 3. Bb5 {[%clk 0:02:55]}  Nd4 {[%clk 0:02:58]} 4. Nf3 {[%clk 0:02:55]}  Nxb5 {[%clk 0:02:53]} 5. Nxb5 {[%clk 0:02:55]}  d6 {[%clk 0:02:54]} 6. d4 {[%clk 0:02:54]}  a6 {[%clk 0:02:54]} 7. Nc3 {[%clk 0:02:54]}  cxd4 {[%clk 0:02:55]} 8. Qxd4 {[%clk 0:02:55]}  e5 {[%clk 0:02:49]} 9. Qb4 {[%clk 0:02:54]}  h6 {[%clk 0:02:26]} 10. Be3 {[%clk 0:02:38]}  Nf6 {[%clk 0:02:20]} 11. Bb6 {[%clk 0:02:31]}  Qd7 {[%clk 0:02:20]} 12. O-O-O {[%clk 0:02:26]}  Qe6 {[%clk 0:02:05]} 13. Bc7 {[%clk 0:01:58]}  a5 {[%clk 0:02:03]} 14. Qb5+ {[%clk 0:01:40]}  Bd7 {[%clk 0:01:57]} 15. Qxb7 {[%clk 0:01:38]}  Rc8 {[%clk 0:01:57]} 16. Qb6 {[%clk 0:01:17]}  Be7 {[%clk 0:01:58]} 17. Qxa5 {[%clk 0:00:41]}  O-O {[%clk 0:01:57]} 18. h3 {[%clk 0:00:37]}  Bc6 {[%clk 0:01:41]} 19. Rhe1 {[%clk 0:00:35]}  Nd7 {[%clk 0:01:24]} 20. Nd5 {[%clk 0:00:27]}  Bxd5 {[%clk 0:01:24]} 21. exd5 {[%clk 0:00:23]}  Qg6 {[%clk 0:01:23]} 22. Re2 {[%clk 0:00:16]}  Qxg2 {[%clk 0:01:14]} 23. Ne1 {[%clk 0:00:15]}  Qxh3 {[%clk 0:01:14]} 24. Kb1 {[%clk 0:00:11]}  Qf5 {[%clk 0:01:13]} 25. Qa7 {[%clk 0:00:10]}  Qh5 {[%clk 0:01:09]} 26. f3 {[%clk 0:00:09]}  Qf5 {[%clk 0:01:04]} 27. Qb7 {[%clk 0:00:05]}  Nc5 {[%clk 0:01:02]} 28. Qa7 {[%clk 0:00:03]}  Ra8 {[%clk 0:00:55]} 29. Qb6 {[%clk 0:00:04]}  Qd7 {[%clk 0:00:56]} 30. Qc6 {[%clk 0:00:04]}  Rfc8 {[%clk 0:00:56]} 31. Qxd7 {[%clk 0:00:02]}  Nxd7 {[%clk 0:00:57]} 32. f4 {[%clk 0:00:02]}  Rxc7 {[%clk 0:00:57]} 33. Nd3 {[%clk 0:00:02]}  Bf6 {[%clk 0:00:57]} 34. Nb4 {[%clk 0:00:02]}  exf4 {[%clk 0:00:57]} 35. Nc6 {[%clk 0:00:03]}  Rb7 {[%clk 0:00:57]} 36. c4 {[%clk 0:00:02]}  Nc5 {[%clk 0:00:57]} 37. b4 {[%clk 0:00:02]}  Na4 {[%clk 0:00:58]} 38. Kc2 {[%clk 0:00:02]}  Nc3 {[%clk 0:00:58]} 39. Kd3 {[%clk 0:00:02]}  Nxd1 {[%clk 0:00:59]} 0-1


[Site "https://www.chess.com"]

[Event "Titled Tuesday Blitz May 10 Late 2022"]
[White "Jakubowski, Krzysztof"]
[Black "Perez Molina, Robinson"]
[WhiteFideId "1112848"]
[BlackFideId "3403882"]
[WhiteElo "2365"]
[BlackElo "2252"]
[Result "1/2-1/2"]
[Round "10"]
[TimeControl "180+1"]
[Date "2022.05.11"]
[WhiteClock "0:00:04"]
[BlackClock "0:00:10"]

1. e4 {[%clk 0:03:00]}  e5 {[%clk 0:02:58]} 2. Nf3 {[%clk 0:03:00]}  Nc6 {[%clk 0:02:58]} 3. Bc4 {[%clk 0:02:59]}  Bc5 {[%clk 0:02:58]} 4. d3 {[%clk 0:02:58]}  Nf6 {[%clk 0:02:56]} 5. O-O {[%clk 0:02:57]}  a6 {[%clk 0:02:56]} 6. c3 {[%clk 0:02:53]}  d6 {[%clk 0:02:56]} 7. a4 {[%clk 0:02:52]}  O-O {[%clk 0:02:55]} 8. h3 {[%clk 0:02:49]}  h6 {[%clk 0:02:52]} 9. Re1 {[%clk 0:02:45]}  Re8 {[%clk 0:02:52]} 10. Nbd2 {[%clk 0:02:41]}  Be6 {[%clk 0:02:45]} 11. Bxe6 {[%clk 0:02:37]}  Rxe6 {[%clk 0:02:46]} 12. Nf1 {[%clk 0:02:34]}  d5 {[%clk 0:02:39]} 13. Ng3 {[%clk 0:02:22]}  dxe4 {[%clk 0:02:33]} 14. dxe4 {[%clk 0:02:23]}  Qxd1 {[%clk 0:02:32]} 15. Rxd1 {[%clk 0:02:22]}  Rd8 {[%clk 0:02:32]} 16. Rxd8+ {[%clk 0:02:18]}  Nxd8 {[%clk 0:02:31]} 17. b4 {[%clk 0:02:18]}  Bf8 {[%clk 0:01:55]} 18. Kf1 {[%clk 0:02:12]}  g6 {[%clk 0:01:55]} 19. Be3 {[%clk 0:02:07]}  Nd7 {[%clk 0:01:52]} 20. Nd2 {[%clk 0:01:50]}  Rc6 {[%clk 0:01:45]} 21. Ne2 {[%clk 0:01:48]}  Nb6 {[%clk 0:01:37]} 22. b5 {[%clk 0:01:47]}  Rd6 {[%clk 0:01:27]} 23. c4 {[%clk 0:01:24]}  Nd7 {[%clk 0:01:15]} 24. Nc3 {[%clk 0:01:15]}  Rd3 {[%clk 0:01:07]} 25. Nd5 {[%clk 0:00:46]}  c6 {[%clk 0:01:07]} 26. bxa6 {[%clk 0:00:45]}  bxa6 {[%clk 0:01:06]} 27. Nc7 {[%clk 0:00:45]}  a5 {[%clk 0:00:54]} 28. Ke2 {[%clk 0:00:44]}  Rc3 {[%clk 0:00:49]} 29. Ne8 {[%clk 0:00:20]}  h5 {[%clk 0:00:37]} 30. g4 {[%clk 0:00:19]}  hxg4 {[%clk 0:00:24]} 31. hxg4 {[%clk 0:00:20]}  Ne6 {[%clk 0:00:20]} 32. Rb1 {[%clk 0:00:19]}  Bb4 {[%clk 0:00:20]} 33. Rh1 {[%clk 0:00:17]}  c5 {[%clk 0:00:15]} 34. g5 {[%clk 0:00:16]}  Nd4+ {[%clk 0:00:14]} 35. Bxd4 {[%clk 0:00:16]}  cxd4 {[%clk 0:00:15]} 36. Nf3 {[%clk 0:00:16]}  Be7 {[%clk 0:00:13]} 37. Rb1 {[%clk 0:00:14]}  Bb4 {[%clk 0:00:12]} 38. Rh1 {[%clk 0:00:14]}  Rxc4 {[%clk 0:00:12]} 39. Nf6+ {[%clk 0:00:11]}  Nxf6 {[%clk 0:00:12]} 40. gxf6 {[%clk 0:00:11]}  Rc2+ {[%clk 0:00:10]} 41. Kd3 {[%clk 0:00:05]}  Rc3+ {[%clk 0:00:09]} 42. Ke2 {[%clk 0:00:05]}  Rc2+ {[%clk 0:00:09]} 43. Kd3 {[%clk 0:00:04]}  Rc3+ {[%clk 0:00:09]} 44. Ke2 {[%clk 0:00:04]}  Rc2+ {[%clk 0:00:10]} 1/2-1/2


[Site "https://www.chess.com"]

[Event "Titled Tuesday Blitz May 10 Late 2022"]
[White "Kamsky, Gata"]
[Black "Nazaretyan, Tigran"]
[WhiteFideId "2000024"]
[BlackFideId "24162345"]
[WhiteElo "2645"]
[BlackElo "2225"]
[Result "1-0"]
[Round "10"]
[TimeControl "180+1"]
[Date "2022.05.10"]
[WhiteClock "0:01:24"]
[BlackClock "0:00:06"]

1. e4 {[%clk 0:03:00]}  c5 {[%clk 0:02:59]} 2. Nc3 {[%clk 0:02:59]}  Nc6 {[%clk 0:02:58]} 3. f4 {[%clk 0:02:59]}  g6 {[%clk 0:02:53]} 4. Nf3 {[%clk 0:02:59]}  Bg7 {[%clk 0:02:53]} 5. Bb5 {[%clk 0:03:00]}  Nd4 {[%clk 0:02:51]} 6. Bc4 {[%clk 0:02:57]}  e6 {[%clk 0:02:49]} 7. O-O {[%clk 0:02:52]}  Ne7 {[%clk 0:02:48]} 8. d3 {[%clk 0:02:48]}  a6 {[%clk 0:02:35]} 9. a4 {[%clk 0:02:46]}  Rb8 {[%clk 0:02:33]} 10. Nxd4 {[%clk 0:02:42]}  cxd4 {[%clk 0:02:30]} 11. Ne2 {[%clk 0:02:43]}  b5 {[%clk 0:02:25]} 12. axb5 {[%clk 0:02:42]}  axb5 {[%clk 0:02:25]} 13. Bb3 {[%clk 0:02:42]}  d6 {[%clk 0:02:19]} 14. Kh1 {[%clk 0:02:40]}  h5 {[%clk 0:02:05]} 15. Qe1 {[%clk 0:02:38]}  h4 {[%clk 0:02:04]} 16. h3 {[%clk 0:02:37]}  Bd7 {[%clk 0:02:01]} 17. Bd2 {[%clk 0:02:34]}  Ra8 {[%clk 0:02:00]} 18. Rxa8 {[%clk 0:02:30]}  Qxa8 {[%clk 0:01:59]} 19. Ng1 {[%clk 0:02:30]}  Bc6 {[%clk 0:01:22]} 20. Nf3 {[%clk 0:02:28]}  d5 {[%clk 0:01:22]} 21. e5 {[%clk 0:02:24]}  Nf5 {[%clk 0:01:22]} 22. Kh2 {[%clk 0:02:20]}  Bf8 {[%clk 0:01:13]} 23. Bb4 {[%clk 0:02:16]}  Ng3 {[%clk 0:01:05]} 24. Rg1 {[%clk 0:02:09]}  Qa7 {[%clk 0:01:02]} 25. Bxf8 {[%clk 0:02:07]}  Kxf8 {[%clk 0:01:02]} 26. Qb4+ {[%clk 0:02:06]}  Kg7 {[%clk 0:01:01]} 27. Qxd4 {[%clk 0:02:05]}  Qe7 {[%clk 0:00:59]} 28. Ra1 {[%clk 0:02:04]}  Ra8 {[%clk 0:00:52]} 29. Rxa8 {[%clk 0:02:03]}  Bxa8 {[%clk 0:00:53]} 30. c3 {[%clk 0:02:00]}  Nh5 {[%clk 0:00:48]} 31. Bd1 {[%clk 0:01:53]}  Ng3 {[%clk 0:00:35]} 32. Qf2 {[%clk 0:01:45]}  b4 {[%clk 0:00:33]} 33. Nxh4 {[%clk 0:01:42]}  bxc3 {[%clk 0:00:31]} 34. Kxg3 {[%clk 0:01:37]}  cxb2 {[%clk 0:00:27]} 35. Qxb2 {[%clk 0:01:37]}  g5 {[%clk 0:00:28]} 36. Nf3 {[%clk 0:01:36]}  gxf4+ {[%clk 0:00:24]} 37. Kxf4 {[%clk 0:01:36]}  Qa7 {[%clk 0:00:16]} 38. d4 {[%clk 0:01:35]}  Bc6 {[%clk 0:00:16]} 39. g4 {[%clk 0:01:34]}  Qa5 {[%clk 0:00:15]} 40. h4 {[%clk 0:01:33]}  Bb5 {[%clk 0:00:15]} 41. Qd2 {[%clk 0:01:28]}  Qa3 {[%clk 0:00:13]} 42. Bc2 {[%clk 0:01:28]}  Bf1 {[%clk 0:00:12]} 43. Kg3 {[%clk 0:01:27]}  Qa1 {[%clk 0:00:11]} 44. h5 {[%clk 0:01:25]}  Bb5 {[%clk 0:00:07]} 45. h6+ {[%clk 0:01:25]}  Kh8 {[%clk 0:00:06]} 46. Qg5 {[%clk 0:01:24]} 1-0


[Site "https://www.chess.com"]

[Event "Titled Tuesday Blitz May 10 Late 2022"]
[White "Kanyamarala, Tarun"]
[Black "Janaszak, Dawid"]
[WhiteFideId "45004714"]
[BlackFideId "1119206"]
[WhiteElo "2219"]
[BlackElo "2199"]
[Result "1-0"]
[Round "10"]
[TimeControl "180+1"]
[Date "2022.05.10"]
[WhiteClock "0:00:01"]
[BlackClock "0:00:02"]

1. d4 {[%clk 0:03:00]}  Nf6 {[%clk 0:02:59]} 2. Nf3 {[%clk 0:03:01]}  g6 {[%clk 0:02:58]} 3. c4 {[%clk 0:03:00]}  Bg7 {[%clk 0:02:58]} 4. Nc3 {[%clk 0:03:00]}  O-O {[%clk 0:02:57]} 5. e4 {[%clk 0:02:59]}  d6 {[%clk 0:02:58]} 6. Be3 {[%clk 0:03:00]}  Nbd7 {[%clk 0:02:49]} 7. Nd2 {[%clk 0:02:55]}  e5 {[%clk 0:02:47]} 8. d5 {[%clk 0:02:56]}  c6 {[%clk 0:02:28]} 9. g4 {[%clk 0:02:47]}  h5 {[%clk 0:02:23]} 10. h3 {[%clk 0:02:42]}  cxd5 {[%clk 0:02:17]} 11. cxd5 {[%clk 0:02:41]}  a5 {[%clk 0:02:17]} 12. Be2 {[%clk 0:02:36]}  h4 {[%clk 0:02:03]} 13. g5 {[%clk 0:02:32]}  Nh7 {[%clk 0:02:02]} 14. Nf3 {[%clk 0:02:24]}  Nc5 {[%clk 0:02:01]} 15. Rg1 {[%clk 0:02:17]}  a4 {[%clk 0:02:01]} 16. Nxh4 {[%clk 0:02:16]}  Qa5 {[%clk 0:01:53]} 17. Qd2 {[%clk 0:02:04]}  Bd7 {[%clk 0:01:50]} 18. Bg4 {[%clk 0:01:44]}  Be8 {[%clk 0:01:45]} 19. Nf3 {[%clk 0:01:39]}  b5 {[%clk 0:01:41]} 20. Bxc5 {[%clk 0:01:24]}  dxc5 {[%clk 0:01:41]} 21. d6 {[%clk 0:01:25]}  Bc6 {[%clk 0:01:27]} 22. Nd5 {[%clk 0:01:25]}  Bxd5 {[%clk 0:01:23]} 23. Qxa5 {[%clk 0:01:22]}  Rxa5 {[%clk 0:01:24]} 24. exd5 {[%clk 0:01:22]}  e4 {[%clk 0:01:24]} 25. Nd2 {[%clk 0:01:22]}  Bxb2 {[%clk 0:01:20]} 26. Rb1 {[%clk 0:01:23]}  a3 {[%clk 0:01:15]} 27. Nxe4 {[%clk 0:01:21]}  c4 {[%clk 0:01:10]} 28. Kd2 {[%clk 0:01:19]}  b4 {[%clk 0:01:09]} 29. Kc2 {[%clk 0:01:19]}  Rxd5 {[%clk 0:01:05]} 30. Rgd1 {[%clk 0:01:16]}  Rb5 {[%clk 0:00:52]} 31. Rxb2 {[%clk 0:01:05]}  axb2 {[%clk 0:00:51]} 32. f4 {[%clk 0:01:05]}  c3 {[%clk 0:00:47]} 33. d7 {[%clk 0:00:59]}  Rd8 {[%clk 0:00:42]} 34. Nd6 {[%clk 0:00:56]}  Rbb8 {[%clk 0:00:31]} 35. Nc4 {[%clk 0:00:53]}  Nf8 {[%clk 0:00:29]} 36. Ne5 {[%clk 0:00:47]}  Rb7 {[%clk 0:00:27]} 37. Nc6 {[%clk 0:00:41]}  Rdxd7 {[%clk 0:00:20]} 38. Bxd7 {[%clk 0:00:38]}  Nxd7 {[%clk 0:00:19]} 39. Rd4 {[%clk 0:00:34]}  Kg7 {[%clk 0:00:15]} 40. Rxb4 {[%clk 0:00:28]}  Rc7 {[%clk 0:00:15]} 41. Nd4 {[%clk 0:00:21]}  Nc5 {[%clk 0:00:15]} 42. Ne2 {[%clk 0:00:20]}  Ne6 {[%clk 0:00:14]} 43. Nxc3 {[%clk 0:00:19]}  b1=Q+ {[%clk 0:00:08]} 44. Rxb1 {[%clk 0:00:19]}  Nxf4 {[%clk 0:00:09]} 45. h4 {[%clk 0:00:18]}  Ng2 {[%clk 0:00:09]} 46. Rb4 {[%clk 0:00:18]}  Ne3+ {[%clk 0:00:09]} 47. Kd3 {[%clk 0:00:18]}  Nf5 {[%clk 0:00:09]} 48. a4 {[%clk 0:00:17]}  Rd7+ {[%clk 0:00:09]} 49. Kc2 {[%clk 0:00:17]}  Ne3+ {[%clk 0:00:09]} 50. Kb3 {[%clk 0:00:16]}  Rd3 {[%clk 0:00:09]} 51. a5 {[%clk 0:00:15]}  Nd1 {[%clk 0:00:07]} 52. Kc2 {[%clk 0:00:12]}  Rxc3+ {[%clk 0:00:06]} 53. Kxd1 {[%clk 0:00:12]}  Ra3 {[%clk 0:00:07]} 54. Rb5 {[%clk 0:00:12]}  Ra2 {[%clk 0:00:07]} 55. Kc1 {[%clk 0:00:11]}  Kf8 {[%clk 0:00:08]} 56. Kb1 {[%clk 0:00:11]}  Rh2 {[%clk 0:00:08]} 57. Rb4 {[%clk 0:00:10]}  Rh3 {[%clk 0:00:06]} 58. Kb2 {[%clk 0:00:06]}  Rh2+ {[%clk 0:00:06]} 59. Kb3 {[%clk 0:00:07]}  Rh3+ {[%clk 0:00:07]} 60. Kc4 {[%clk 0:00:06]}  Rxh4+ {[%clk 0:00:07]} 61. Kb5 {[%clk 0:00:06]}  Rh5 {[%clk 0:00:07]} 62. Rg4 {[%clk 0:00:05]}  Rh1 {[%clk 0:00:07]} 63. Kb6 {[%clk 0:00:03]}  Rb1+ {[%clk 0:00:07]} 64. Kc6 {[%clk 0:00:03]}  f5 {[%clk 0:00:06]} 65. gxf6 {[%clk 0:00:03]}  Kf7 {[%clk 0:00:06]} 66. a6 {[%clk 0:00:02]}  Ra1 {[%clk 0:00:06]} 67. Kb7 {[%clk 0:00:03]}  Kxf6 {[%clk 0:00:06]} 68. a7 {[%clk 0:00:03]}  Kf5 {[%clk 0:00:07]} 69. Rg1 {[%clk 0:00:02]}  Rxg1 {[%clk 0:00:02]} 70. a8=Q {[%clk 0:00:02]}  Rb1+ {[%clk 0:00:02]} 71. Kc6 {[%clk 0:00:02]}  Rc1+ {[%clk 0:00:03]} 72. Kd5 {[%clk 0:00:02]}  Rd1+ {[%clk 0:00:03]} 73. Kc4 {[%clk 0:00:02]}  Rc1+ {[%clk 0:00:03]} 74. Kd3 {[%clk 0:00:01]}  Rc5 {[%clk 0:00:01]} 75. Qf8+ {[%clk 0:00:01]}  Kg4 {[%clk 0:00:02]} 76. Qxc5 {[%clk 0:00:01]} 1-0


[Site "https://www.chess.com"]

[Event "Titled Tuesday Blitz May 10 Late 2022"]
[White "Kanyamarala, Trisha"]
[Black "Jeet, Jain"]
[WhiteFideId "45004722"]
[BlackFideId "5073022"]
[WhiteElo "2134"]
[BlackElo "2028"]
[Result "0-1"]
[Round "10"]
[TimeControl "180+1"]
[Date "2022.05.11"]
[WhiteClock "0:00:02"]
[BlackClock "0:00:03"]

1. c4 {[%clk 0:03:00]}  e5 {[%clk 0:02:59]} 2. Nc3 {[%clk 0:03:00]}  Nc6 {[%clk 0:02:58]} 3. g3 {[%clk 0:03:01]}  Nf6 {[%clk 0:02:57]} 4. Bg2 {[%clk 0:03:01]}  Bc5 {[%clk 0:02:56]} 5. d3 {[%clk 0:02:57]}  a6 {[%clk 0:02:51]} 6. e4 {[%clk 0:02:50]}  h6 {[%clk 0:02:48]} 7. h3 {[%clk 0:02:49]}  d6 {[%clk 0:02:48]} 8. Nge2 {[%clk 0:02:48]}  O-O {[%clk 0:02:43]} 9. O-O {[%clk 0:02:48]}  Nd4 {[%clk 0:02:42]} 10. Be3 {[%clk 0:02:44]}  c6 {[%clk 0:02:37]} 11. Rb1 {[%clk 0:02:32]}  a5 {[%clk 0:02:36]} 12. a3 {[%clk 0:02:30]}  Be6 {[%clk 0:02:31]} 13. b4 {[%clk 0:02:27]}  axb4 {[%clk 0:02:30]} 14. axb4 {[%clk 0:02:28]}  Ba7 {[%clk 0:02:30]} 15. Kh2 {[%clk 0:02:18]}  Qc8 {[%clk 0:02:28]} 16. b5 {[%clk 0:02:13]}  cxb5 {[%clk 0:02:26]} 17. Nxb5 {[%clk 0:02:07]}  Nxb5 {[%clk 0:02:23]} 18. Rxb5 {[%clk 0:02:08]}  Bd7 {[%clk 0:02:19]} 19. Rb2 {[%clk 0:01:57]}  Bxe3 {[%clk 0:02:17]} 20. fxe3 {[%clk 0:01:56]}  Qc5 {[%clk 0:02:14]} 21. Qd2 {[%clk 0:01:50]}  Bc6 {[%clk 0:02:09]} 22. Nc3 {[%clk 0:01:46]}  Ra3 {[%clk 0:02:00]} 23. g4 {[%clk 0:01:12]}  Rfa8 {[%clk 0:01:51]} 24. Ne2 {[%clk 0:01:10]}  Qa5 {[%clk 0:01:42]} 25. Qc2 {[%clk 0:00:56]}  Ba4 {[%clk 0:01:27]} 26. Qb1 {[%clk 0:00:47]}  Bc6 {[%clk 0:01:24]} 27. Qc2 {[%clk 0:00:45]}  Qa4 {[%clk 0:01:23]} 28. Qd2 {[%clk 0:00:40]}  b5 {[%clk 0:01:22]} 29. Ng3 {[%clk 0:00:31]}  bxc4 {[%clk 0:01:19]} 30. Rxf6 {[%clk 0:00:30]}  c3 {[%clk 0:01:11]} 31. Qf2 {[%clk 0:00:18]}  cxb2 {[%clk 0:01:08]} 32. Rxf7 {[%clk 0:00:10]}  Qb3 {[%clk 0:00:41]} 33. Rxg7+ {[%clk 0:00:02]}  Kxg7 {[%clk 0:00:41]} 34. Nh5+ {[%clk 0:00:02]}  Kg8 {[%clk 0:00:42]} 35. Qf6 {[%clk 0:00:01]}  Qf7 {[%clk 0:00:42]} 36. Qxh6 {[%clk 0:00:01]}  b1=Q {[%clk 0:00:41]} 37. Nf6+ {[%clk 0:00:01]}  Qxf6 {[%clk 0:00:41]} 38. Qxf6 {[%clk 0:00:01]}  R3a7 {[%clk 0:00:29]} 39. Qg6+ {[%clk 0:00:02]}  Rg7 {[%clk 0:00:27]} 40. Qe6+ {[%clk 0:00:02]}  Rf7 {[%clk 0:00:27]} 41. Qg6+ {[%clk 0:00:02]}  Kf8 {[%clk 0:00:27]} 42. Qxd6+ {[%clk 0:00:03]}  Kg8 {[%clk 0:00:20]} 43. Qg6+ {[%clk 0:00:03]}  Rg7 {[%clk 0:00:20]} 44. Qe6+ {[%clk 0:00:03]}  Kh7 {[%clk 0:00:20]} 45. Qxc6 {[%clk 0:00:02]}  Rf8 {[%clk 0:00:18]} 46. g5 {[%clk 0:00:02]}  Qe1 {[%clk 0:00:18]} 47. Qh6+ {[%clk 0:00:02]}  Kg8 {[%clk 0:00:17]} 48. Qe6+ {[%clk 0:00:02]}  Rff7 {[%clk 0:00:17]} 49. g6 {[%clk 0:00:02]}  Qf2 {[%clk 0:00:15]} 50. gxf7+ {[%clk 0:00:02]}  Rxf7 {[%clk 0:00:16]} 51. Qg6+ {[%clk 0:00:02]}  Kf8 {[%clk 0:00:16]} 52. Qd6+ {[%clk 0:00:02]}  Re7 {[%clk 0:00:15]} 53. Qh6+ {[%clk 0:00:01]}  Ke8 {[%clk 0:00:16]} 54. Qc6+ {[%clk 0:00:02]}  Kf7 {[%clk 0:00:15]} 55. Qd5+ {[%clk 0:00:01]}  Kf6 {[%clk 0:00:16]} 56. Qd6+ {[%clk 0:00:01]}  Kf7 {[%clk 0:00:15]} 57. Qd5+ {[%clk 0:00:01]}  Kg7 {[%clk 0:00:16]} 58. Qd6 {[%clk 0:00:01]}  Qf7 {[%clk 0:00:14]} 59. Qd5 {[%clk 0:00:01]}  Qf6 {[%clk 0:00:13]} 60. Qc5 {[%clk 0:00:01]}  Rd7 {[%clk 0:00:13]} 61. Qb5 {[%clk 0:00:01]}  Qd6 {[%clk 0:00:12]} 62. Qc4 {[%clk 0:00:01]}  Qxd3 {[%clk 0:00:12]} 63. Qe6 {[%clk 0:00:01]}  Qd6 {[%clk 0:00:11]} 64. Qg4+ {[%clk 0:00:02]}  Kf7 {[%clk 0:00:11]} 65. Qf5+ {[%clk 0:00:02]}  Ke7 {[%clk 0:00:12]} 66. Qh7+ {[%clk 0:00:02]}  Kd8 {[%clk 0:00:12]} 67. Qg8+ {[%clk 0:00:03]}  Kc7 {[%clk 0:00:11]} 68. Qc4+ {[%clk 0:00:04]}  Qc6 {[%clk 0:00:11]} 69. Qb4 {[%clk 0:00:03]}  Rg7 {[%clk 0:00:07]} 70. Qa5+ {[%clk 0:00:03]}  Kd7 {[%clk 0:00:06]} 71. Qxe5 {[%clk 0:00:02]}  Qg6 {[%clk 0:00:03]} 72. Qd5+ {[%clk 0:00:02]}  Ke8 {[%clk 0:00:03]} 73. Qb5+ {[%clk 0:00:01]}  Kf8 {[%clk 0:00:03]} 74. Qf5+ {[%clk 0:00:01]}  Kg8 {[%clk 0:00:03]} 75. Qxg6 {[%clk 0:00:02]}  Rxg6 {[%clk 0:00:04]} 76. Bf3 {[%clk 0:00:02]}  Kf7 {[%clk 0:00:05]} 77. Bg4 {[%clk 0:00:02]}  Kf6 {[%clk 0:00:05]} 78. Bf5 {[%clk 0:00:02]}  Rg7 {[%clk 0:00:04]} 79. Bg4 {[%clk 0:00:02]}  Ke5 {[%clk 0:00:05]} 80. Bf5 {[%clk 0:00:03]}  Kd6 {[%clk 0:00:04]} 81. h4 {[%clk 0:00:03]}  Ke5 {[%clk 0:00:04]} 82. Kh3 {[%clk 0:00:03]}  Kf6 {[%clk 0:00:04]} 83. Kh2 {[%clk 0:00:02]}  Rg8 {[%clk 0:00:03]} 84. Kh3 {[%clk 0:00:02]}  Rg1 {[%clk 0:00:03]} 85. Kh2 {[%clk 0:00:02]}  Re1 {[%clk 0:00:04]} 86. Kh3 {[%clk 0:00:02]}  Rxe3+ {[%clk 0:00:05]} 87. Kg4 {[%clk 0:00:03]}  Re1 {[%clk 0:00:05]} 88. h5 {[%clk 0:00:03]}  Rg1+ {[%clk 0:00:06]} 89. Kf4 {[%clk 0:00:03]}  Rf1+ {[%clk 0:00:05]} 90. Kg4 {[%clk 0:00:04]}  Ke5 {[%clk 0:00:05]} 91. Kg5 {[%clk 0:00:04]}  Rg1+ {[%clk 0:00:05]} 92. Kh4 {[%clk 0:00:03]}  Kf4 {[%clk 0:00:04]} 93. Kh3 {[%clk 0:00:04]}  Rh1+ {[%clk 0:00:03]} 94. Kg2 {[%clk 0:00:04]}  Rxh5 {[%clk 0:00:04]} 95. Kf2 {[%clk 0:00:03]}  Rh2+ {[%clk 0:00:04]} 96. Ke1 {[%clk 0:00:04]}  Ke3 {[%clk 0:00:04]} 97. Kd1 {[%clk 0:00:04]}  Rd2+ {[%clk 0:00:04]} 98. Kc1 {[%clk 0:00:04]}  Rf2 {[%clk 0:00:05]} 99. Kb1 {[%clk 0:00:03]}  Kd3 {[%clk 0:00:04]} 100. Kc1 {[%clk 0:00:02]}  Rg2 {[%clk 0:00:03]} 101. Kb1 {[%clk 0:00:02]}  Kc3 {[%clk 0:00:03]} 0-1


[Site "https://www.chess.com"]